fUST/lending_fUST_20250312
["ID","MTS","AMOUNT","RATE_DAILY","PERIOD"]
[355956490,1741734654532,-892.18,0.00019452,2]
[355956491,1741734654542,-500.0,0.00019452,2]
[355956492,1741734654553,-755.13,0.00019452,2]
[355956493,1741734654563,-545.99,0.00019452,2]
[355956494,1741734654573,-500.0,0.00019452,2]
[355956495,1741734654583,-500.0,0.00019452,2]
[355956496,1741734654593,-500.0,0.00019452,2]
[355956497,1741734654603,-1156.57,0.00019452,2]
[355956498,1741734654614,-500.0,0.00019452,2]
[355956499,1741734654624,-520.62,0.00019452,2]
[355956500,1741734654635,-1451.2,0.00019452,2]
[355956501,1741734654645,-500.0,0.00019452,2]
[355956502,1741734654656,-499.9972816,0.00019452,2]
[355956503,1741734654666,-500.0,0.00019452,2]
[355956504,1741734654676,-500.0,0.00019452,2]
[355956505,1741734654686,-621.0,0.00019452,2]
[355956506,1741734654696,-500.0,0.00019452,2]
[355956507,1741734654707,-1784.22,0.00019452,2]
[355956508,1741734654717,-597.54378112,0.00019452,2]
[355956509,1741734654728,-500.0,0.00019452,2]
[355956510,1741734654741,-500.0,0.00019452,2]
[355956511,1741734654751,-500.0,0.00019452,2]
[355956512,1741734654761,-500.0,0.00019452,2]
[355956513,1741734654771,-500.0,0.00019452,2]
[355956514,1741734654782,-500.0,0.00019452,2]
[355956515,1741734654792,-500.0,0.00019452,2]
[355956516,1741734654802,-500.0,0.00019452,2]
[355956517,1741734654812,-500.0,0.00019452,2]
[355956518,1741734654823,-500.0,0.00019452,2]
[355956519,1741734654833,-500.0,0.00019452,2]
[355956520,1741734654843,-1214.06,0.00019452,2]
[355956521,1741734654853,-1227.37,0.00019452,2]
[355956522,1741734654863,-868.24,0.00019452,2]
[355956523,1741734654874,-500.0,0.00019452,2]
[355956524,1741734654884,-212.85824978,0.00019452,2]
[355956525,1741734654893,-500.0,0.00019452,2]
[355956526,1741734654904,-500.0,0.00019452,2]
[355956527,1741734654914,-728.17,0.00019452,2]
[355956528,1741734654925,-1170.42,0.00019452,2]
[355956529,1741734654935,-500.0,0.00019452,2]
[355956530,1741734654945,-500.0,0.00019452,2]
[355956531,1741734654955,-5008.44,0.00019452,2]
[355956532,1741734654965,-488.11347923,0.00019452,2]
[355956533,1741734654975,-500.0,0.00019452,2]
[355956534,1741734654985,-531.960018,0.00019452,2]
[355956535,1741734654995,-1568.17,0.00019452,2]
[355956536,1741734655358,-500.0,0.00019452,2]
[355956537,1741734655393,-500.0,0.00019452,2]
[355956538,1741734655413,-500.0,0.00019452,2]
[355956539,1741734655423,-500.0,0.00019452,2]
[355956540,1741734655433,-500.0,0.00019452,2]
[355956541,1741734655443,-751.65,0.00019452,2]
[355956542,1741734655453,-500.0,0.00019452,2]
[355956543,1741734655463,-500.0,0.00019452,2]
[355956544,1741734655473,-595.41,0.00019452,2]
[355956545,1741734655483,-500.0,0.00019452,2]
[355956546,1741734655493,-1467.72,0.00019452,2]
[355956547,1741734655506,-653.8,0.00019452,2]
[355956548,1741734655516,-4529.09,0.00019452,2]
[355956549,1741734655525,-500.0,0.00019452,2]
[355956550,1741734655535,-500.0,0.00019452,2]
[355956551,1741734655545,-500.0,0.00019452,2]
[355956552,1741734655554,-1000.0,0.00019452,7]
[355956553,1741734655564,-500.0,0.00019452,2]
[355956554,1741734655574,-500.0,0.00019452,2]
[355956555,1741734655584,-500.0,0.00019452,2]
[355956556,1741734655594,-1488.91,0.00019452,2]
[355956557,1741734655604,-500.0,0.00019452,2]
[355956558,1741734655615,-2429.43,0.00019452,2]
[355956559,1741734655624,-621.67,0.00019452,2]
[355956560,1741734655635,-920.31,0.00019452,2]
[355956561,1741734655645,-500.0,0.00019452,2]
[355956562,1741734655655,-500.0,0.00019452,2]
[355956563,1741734655666,-500.0,0.00019452,2]
[355956564,1741734655675,-500.0,0.00019452,2]
[355956565,1741734655685,-524.58321307,0.00019452,2]
[355956566,1741734655695,-957.86,0.00019452,2]
[355956567,1741734655705,-500.0,0.00019452,2]
[355956568,1741734655715,-648.75505281,0.00019452,2]
[355956569,1741734655724,-1110.2,0.00019452,2]
[355956570,1741734655735,-544.11,0.00019452,2]
[355956571,1741734655748,-500.0,0.00019452,2]
[355956572,1741734655758,-500.0,0.00019452,2]
[355956573,1741734655768,-952.07,0.00019452,2]
[355956574,1741734655779,-576.21,0.00019452,2]
[355956575,1741734655789,-738.24,0.00019452,2]
[355956576,1741734655798,-9999.0,0.00019452,2]
[355956577,1741734655808,-853.84,0.00019452,2]
[355956578,1741734655819,-500.0,0.00019452,2]
[355956579,1741734655829,-500.0,0.00019452,2]
[355956580,1741734655838,-500.0,0.00019452,2]
[355956581,1741734655848,-544.34,0.00019452,2]
[355956582,1741734655858,-500.0,0.00019452,2]
[355956583,1741734655867,-500.0,0.00019452,2]
[355956584,1741734655877,-500.0,0.00019452,2]
[355956585,1741734655887,-500.0,0.00019452,2]
[355956586,1741734655897,-500.0,0.00019452,2]
[355956587,1741734655907,-677.1,0.00019452,2]
[355956588,1741734655917,-4842.64,0.00019452,2]
[355956589,1741734655927,-500.0,0.00019452,2]
[355956590,1741734655936,-500.0,0.00019452,2]
[355956591,1741734655946,-500.0,0.00019452,2]
[355956592,1741734655956,-500.0,0.00019452,2]
[355956593,1741734655967,-518.91,0.00019452,2]
[355956594,1741734655977,-500.0,0.00019452,2]
[355956595,1741734655986,-500.0,0.00019452,2]
[355956596,1741734655996,-500.0,0.00019452,2]
[355956597,1741734656006,-500.0,0.00019452,2]
[355956598,1741734656016,-556.66877674,0.00019452,2]
[355956599,1741734656026,-4054.19,0.00019452,2]
[355956600,1741734656035,-866.55,0.00019452,2]
[355956601,1741734656045,-3046.16,0.00019452,2]
[355956602,1741734656055,-500.0,0.00019452,2]
[355956603,1741734656066,-500.0,0.00019452,2]
[355956604,1741734656076,-500.0,0.00019452,2]
[355956605,1741734656086,-9572.92440175,0.00019469,2]
[355956606,1741734656097,-151.0,0.000195,2]
[355956607,1741734656106,-151.0,0.000195,2]
[355956608,1741734656116,-151.0,0.000195,2]
[355956609,1741734656126,-151.0,0.000195,2]
[355956610,1741734656136,-693.8510917,0.00019502,2]
[355956611,1741734656146,-1000.0,0.00019555,2]
[355956612,1741734656155,-719.52358209,0.00019557,2]
[355956613,1741734656166,-1142.28,0.00019562,2]
[355956614,1741734656176,-3772.17,0.00019562,2]
[355956615,1741734656185,-163381.79,0.00019562,2]
[355956616,1741734656195,-2671.58,0.00019562,2]
[355956617,1741734656205,-863.38,0.00019562,2]
[355956618,1741734656215,-5706.05,0.00019562,2]
[355956619,1741734656225,-500.0,0.00019562,2]
[355956620,1741734656235,-664.48,0.00019562,2]
[355956621,1741734656244,-500.0,0.00019562,2]
[355956622,1741734656254,-3577.81,0.00019562,2]
[355956623,1741734656265,-909.63,0.00019565,2]
[355956624,1741734656274,-500.0,0.00019565,2]
[355956625,1741734656284,-1219.12,0.00019565,2]
[355956626,1741734656294,-500.0,0.00019565,2]
[355956627,1741734656303,-500.0,0.00019565,2]
[355956628,1741734656314,-500.0,0.00019565,2]
[355956629,1741734656323,-735.93,0.00019565,2]
[355956630,1741734656333,-613.95,0.00019565,2]
[355956631,1741734656343,-500.0,0.00019565,2]
[355956632,1741734656352,-500.0,0.00019565,2]
[355956633,1741734656362,-500.0,0.00019565,2]
[355956634,1741734656372,-500.0,0.00019565,2]
[355956635,1741734656382,-500.0,0.00019565,2]
[355956636,1741734656392,-500.0,0.00019565,2]
[355956637,1741734656401,-617.74,0.00019565,2]
[355956638,1741734656411,-500.0,0.00019565,2]
[355956639,1741734656434,-1157.79,0.00019565,2]
[355956640,1741734656445,-610.48,0.00019565,2]
[355956641,1741734656456,-500.0,0.00019565,2]
[355956642,1741734656467,-547.18,0.00019565,2]
[355956643,1741734656477,-500.0,0.00019565,2]
[355956644,1741734656487,-500.0,0.00019565,2]
[355956645,1741734656497,-500.0,0.00019565,2]
[355956646,1741734656509,-500.0,0.00019565,2]
[355956647,1741734656519,-522.37505205,0.00019565,2]
[355956648,1741734656530,-1437.26,0.00019565,2]
[355956649,1741734656541,-500.0,0.00019565,2]
[355956650,1741734656552,-500.0,0.00019565,2]
[355956651,1741734656562,-559.53,0.00019565,2]
[355956652,1741734656572,-1184.99,0.00019565,2]
[355956653,1741734656583,-541.3,0.00019565,2]
[355956654,1741734656593,-500.0,0.00019565,2]
[355956655,1741734656604,-500.0,0.00019565,2]
[355956656,1741734656614,-500.0,0.00019565,2]
[355956657,1741734656624,-500.0,0.00019565,2]
[355956658,1741734656635,-500.0,0.00019565,2]
[355956659,1741734656645,-500.0,0.00019565,2]
[355956660,1741734656656,-500.0,0.00019565,2]
[355956661,1741734656667,-500.0,0.00019565,2]
[355956662,1741734656677,-1059.92,0.00019565,2]
[355956663,1741734656688,-500.0,0.00019565,2]
[355956664,1741734656698,-500.0,0.00019565,2]
[355956665,1741734656708,-677.01,0.00019565,2]
[355956666,1741734656719,-1053.17,0.00019565,2]
[355956667,1741734656730,-1149.09,0.00019565,2]
[355956668,1741734656743,-2390.45,0.00019565,2]
[355956669,1741734656753,-187.40905431,0.00019565,2]
[355956670,1741734656764,-500.0,0.00019565,2]
[355956671,1741734656775,-673.04,0.00019565,2]
[355956672,1741734656787,-500.0,0.00019565,2]
[355956673,1741734656798,-1109.37,0.00019565,2]
[355956674,1741734656808,-1057.29,0.00019565,2]
[355956675,1741734656819,-725.09,0.00019565,2]
[355956676,1741734656830,-853.84,0.00019565,2]
[355956677,1741734656841,-500.0,0.00019565,2]
[355956678,1741734656851,-536.23,0.00019565,2]
[355956679,1741734656862,-500.0,0.00019565,2]
[355956680,1741734656872,-740.86,0.00019565,2]
[355956681,1741734656882,-500.0,0.00019565,2]
[355956682,1741734656893,-500.0,0.00019565,2]
[355956683,1741734656903,-500.0,0.00019565,2]
[355956684,1741734656914,-500.0,0.00019569,2]
[355956685,1741734656924,-500.0,0.00019569,2]
[355956686,1741734656935,-500.0,0.00019569,2]
[355956687,1741734656945,-500.0,0.00019569,2]
[355956688,1741734656956,-527.54,0.00019569,2]
[355956689,1741734656966,-500.0,0.00019569,2]
[355956690,1741734656980,-500.0,0.00019569,2]
[355956691,1741734656991,-500.0,0.00019569,2]
[355956692,1741734657003,-500.0,0.00019569,2]
[355956693,1741734657019,-500.0,0.00019569,2]
[355956694,1741734657030,-500.0,0.00019569,2]
[355956695,1741734657042,-504.98,0.00019569,2]
[355956696,1741734657053,-500.0,0.00019569,2]
[355956697,1741734657064,-622.0,0.00019569,2]
[355956698,1741734657076,-500.0,0.00019569,2]
[355956699,1741734657088,-528.37665141,0.00019569,2]
[355956700,1741734657099,-500.0,0.00019569,2]
[355956701,1741734657110,-554.08,0.00019569,2]
[355956702,1741734657120,-500.0,0.00019569,2]
[355956703,1741734657131,-2973.52,0.00019569,2]
[355956704,1741734657141,-601.0,0.00019569,2]
[355956705,1741734657152,-500.0,0.00019569,2]
[355956706,1741734657166,-592.90694377,0.00019569,2]
[355956707,1741734657178,-500.0,0.00019569,2]
[355956708,1741734657188,-691.82,0.00019569,2]
[355956709,1741734657199,-500.0,0.00019569,2]
[355956710,1741734657210,-500.0,0.00019569,2]
[355956711,1741734657224,-500.0,0.00019569,2]
[355956712,1741734657235,-500.0,0.00019569,2]
[355956713,1741734657247,-500.0,0.00019569,2]
[355956714,1741734657257,-500.0,0.00019569,2]
[355956715,1741734657268,-500.0,0.00019569,2]
[355956716,1741734657279,-500.0,0.00019569,2]
[355956717,1741734657290,-500.0,0.00019569,2]
[355956718,1741734657301,-500.0,0.00019569,2]
[355956719,1741734657311,-500.0,0.00019569,2]
[355956720,1741734657322,-602.44,0.00019569,2]
[355956721,1741734657332,-500.0,0.00019569,2]
[355956722,1741734657343,-500.0,0.00019569,2]
[355956723,1741734657353,-500.0,0.00019569,2]
[355956724,1741734657364,-820.67,0.00019569,2]
[355956725,1741734657374,-500.0,0.00019569,2]
[355956726,1741734657383,-793.66,0.00019569,2]
[355956727,1741734657394,-500.0,0.00019569,2]
[355956728,1741734657403,-590.49,0.00019569,2]
[355956729,1741734657414,-500.0,0.00019569,2]
[355956730,1741734657425,-500.0,0.00019569,2]
[355956731,1741734657435,-500.0,0.00019569,2]
[355956732,1741734657445,-500.0,0.00019569,2]
[355956733,1741734657455,-500.0,0.00019569,2]
[355956734,1741734657465,-500.0,0.00019569,2]
[355956735,1741734657478,-500.0,0.00019569,2]
[355956736,1741734657489,-504.5594797,0.00019569,2]
[355956737,1741734657498,-643.36618949,0.00019569,2]
[355956738,1741734657508,-500.0,0.00019569,2]
[355956739,1741734657518,-500.0,0.00019569,2]
[355956740,1741734657527,-500.0,0.00019569,2]
[355956741,1741734657538,-535.91,0.00019569,2]
[355956742,1741734657548,-500.0,0.00019569,2]
[355956743,1741734657558,-500.0,0.00019569,2]
[355956744,1741734657568,-500.0,0.00019569,2]
[355956745,1741734657578,-500.0,0.00019569,2]
[355956746,1741734657588,-500.0,0.00019569,2]
[355956747,1741734657598,-500.0,0.00019569,2]
[355956748,1741734657608,-500.0,0.00019569,2]
[355956749,1741734657617,-500.0,0.00019569,2]
[355956750,1741734657628,-500.0,0.00019569,2]
[355956751,1741734657638,-500.0,0.00019569,2]
[355956752,1741734657648,-500.0,0.00019569,2]
[355956753,1741734657658,-500.0,0.00019569,2]
[355956754,1741734657668,-500.0,0.00019569,2]
[355956755,1741734657678,-500.0,0.00019569,2]
[355956756,1741734657688,-500.0,0.00019569,2]
[355956757,1741734657698,-500.0,0.00019569,2]
[355956758,1741734657709,-500.0,0.00019569,2]
[355956759,1741734657721,-524.50084811,0.00019569,2]
[355956760,1741734657731,-500.0,0.00019569,2]
[355956761,1741734657742,-654.51,0.00019569,2]
[355956762,1741734657753,-500.0,0.00019569,2]
[355956763,1741734657762,-500.0,0.00019569,2]
[355956764,1741734657772,-500.0,0.00019569,2]
[355956765,1741734657783,-500.0,0.00019569,2]
[355956766,1741734657792,-500.0,0.00019569,2]
[355956767,1741734657802,-500.0,0.00019569,2]
[355956768,1741734657812,-864.43,0.00019569,2]
[355956769,1741734657823,-500.0,0.00019569,2]
[355956770,1741734657834,-500.0,0.00019569,2]
[355956771,1741734657844,-1196.8,0.00019569,2]
[355956772,1741734657854,-500.0,0.00019569,2]
[355956773,1741734657864,-500.0,0.00019569,2]
[355956774,1741734657874,-500.0,0.00019569,2]
[355956775,1741734657884,-500.0,0.00019569,2]
[355956776,1741734657894,-500.0,0.00019569,2]
[355956777,1741734657904,-500.0,0.00019569,2]
[355956778,1741734658004,-920.25,0.00019569,2]
[355956779,1741734658014,-500.0,0.00019569,2]
[355956780,1741734658024,-1396.49,0.00019569,2]
[355956781,1741734658033,-500.0,0.00019569,2]
[355956782,1741734658043,-500.0,0.00019569,2]
[355956783,1741734658052,-500.0,0.00019569,2]
[355956784,1741734658062,-500.0,0.00019569,2]
[355956785,1741734658071,-500.0,0.00019569,2]
[355956786,1741734658081,-548.11,0.00019569,2]
[355956787,1741734658090,-500.0,0.00019569,2]
[355956788,1741734658099,-500.0,0.00019569,2]
[355956789,1741734658109,-500.0,0.00019569,2]
[355956790,1741734658119,-647.17,0.00019569,5]
[355956791,1741734658130,-500.0,0.00019569,2]
[355956792,1741734658140,-500.0,0.00019569,2]
[355956793,1741734658149,-500.0,0.00019569,2]
[355956794,1741734658159,-441.82256377,0.00019569,2]
[355956795,1741734658169,-500.0,0.00019569,2]
[355956796,1741734658179,-500.0,0.00019569,2]
[355956797,1741734658188,-500.0,0.00019569,2]
[355956798,1741734658198,-500.0,0.00019569,2]
[355956799,1741734658208,-500.0,0.00019569,2]
[355956800,1741734658217,-500.0,0.00019569,2]
[355956801,1741734658230,-500.0,0.00019569,2]
[355956802,1741734658240,-627.98,0.00019569,2]
[355956803,1741734658249,-500.0,0.00019569,2]
[355956804,1741734658259,-500.0,0.00019572,2]
[355956805,1741734658268,-500.0,0.00019572,2]
[355956806,1741734658278,-500.0,0.00019572,2]
[355956807,1741734658287,-728.06,0.00019572,2]
[355956808,1741734658296,-958.86,0.00019572,2]
[355956809,1741734658306,-1101.24,0.00019572,2]
[355956810,1741734658315,-987.72,0.00019572,2]
[355956811,1741734658325,-500.0,0.00019573,2]
[355956812,1741734658334,-500.0,0.00019573,2]
[355956813,1741734658343,-500.0,0.00019573,2]
[355956814,1741734658353,-500.0,0.00019573,2]
[355956815,1741734658362,-500.0,0.00019573,2]
[355956816,1741734658371,-500.0,0.00019573,2]
[355956817,1741734658382,-548.64388897,0.00019573,2]
[355956818,1741734658399,-386.86126125,0.00019573,2]
[355956819,1741734658408,-500.0,0.00019573,2]
[355956820,1741734658417,-500.0,0.00019573,2]
[355956821,1741734658427,-554.41083834,0.00019573,2]
[355956822,1741734658436,-500.0,0.00019573,2]
[355956823,1741734658446,-500.0,0.00019573,2]
[355956824,1741734658455,-485.11247823,0.00019573,2]
[355956825,1741734658465,-150.00002019,0.00019573,2]
[355956826,1741734658477,-500.0,0.00019573,2]
[355956827,1741734658486,-500.0,0.00019573,2]
[355956828,1741734658495,-352.22778938,0.00019573,2]
[355956829,1741734658505,-500.0,0.00019573,2]
[355956830,1741734658514,-391.74320761,0.00019573,2]
[355956831,1741734658523,-500.0,0.00019573,2]
[355956832,1741734658532,-500.0,0.00019573,2]
[355956833,1741734658542,-500.0,0.00019573,2]
[355956834,1741734658551,-500.0,0.00019573,2]
[355956835,1741734658560,-500.0,0.00019573,2]
[355956836,1741734658570,-500.0,0.00019573,2]
[355956837,1741734658580,-500.0,0.00019573,2]
[355956838,1741734658589,-500.0,0.00019573,2]
[355956839,1741734658599,-500.0,0.00019573,2]
[355956840,1741734658608,-500.0,0.00019573,2]
[355956841,1741734658617,-468.00953771,0.00019573,2]
[355956842,1741734658627,-253.62221457,0.00019573,2]
[355956843,1741734658636,-500.0,0.00019573,2]
[355956844,1741734658645,-500.0,0.00019573,2]
[355956845,1741734658654,-500.0,0.00019573,2]
[355956846,1741734658664,-500.0,0.00019573,2]
[355956847,1741734658674,-500.0,0.00019573,2]
[355956848,1741734658683,-500.0,0.00019573,2]
[355956849,1741734658693,-500.0,0.00019573,2]
[355956850,1741734658702,-500.0,0.00019573,2]
[355956851,1741734658712,-1782.88,0.00019573,2]
[355956852,1741734658721,-605.35865668,0.00019573,2]
[355956853,1741734658731,-559.98,0.00019573,2]
[355956854,1741734658742,-640.92,0.00019573,2]
[355956855,1741734658752,-500.0,0.00019573,2]
[355956856,1741734658761,-500.0,0.00019573,2]
[355956857,1741734658770,-578.46,0.00019573,2]
[355956858,1741734658780,-500.0,0.00019573,2]
[355956859,1741734658789,-1913.04,0.00019573,2]
[355956860,1741734658798,-500.0,0.00019573,2]
[355956861,1741734658807,-500.0,0.00019573,2]
[355956862,1741734658817,-888.29,0.00019573,2]
[355956863,1741734658827,-748.42,0.00019573,2]
[355956864,1741734658836,-746.14595463,0.00019612,2]
[355956865,1741734658846,-500.0,0.00019662,2]
[355956866,1741734658856,-500.0,0.00019662,2]
[355956867,1741734658865,-500.0,0.00019662,2]
[355956868,1741734658875,-773.75335495,0.00019667,2]
[355956869,1741734658884,-1565.6,0.00019671,2]
[355956870,1741734658893,-1565.6,0.00019671,2]
[355956871,1741734658902,-1565.6,0.00019671,2]
[355956872,1741734658911,-1565.6,0.00019671,2]
[355956873,1741734658921,-1565.6,0.00019671,2]
[355956874,1741734658930,-1565.6,0.00019671,2]
[355956875,1741734658939,-1565.6,0.00019671,2]
[355956876,1741734658948,-1565.6,0.00019671,2]
[355956877,1741734658957,-1565.6,0.00019671,2]
[355956878,1741734658966,-1565.6,0.00019671,2]
[355956879,1741734658977,-1565.6,0.00019671,2]
[355956880,1741734658986,-1565.6,0.00019671,2]
[355956881,1741734658996,-1565.6,0.00019671,2]
[355956882,1741734659005,-1565.6,0.00019671,2]
[355956883,1741734659014,-1565.6,0.00019671,2]
[355956884,1741734659023,-1565.6,0.00019671,2]
[355956885,1741734659033,-1565.6,0.00019671,2]
[355956886,1741734659042,-1565.6,0.00019671,2]
[355956887,1741734659052,-1565.6,0.00019671,2]
[355956888,1741734659060,-1565.6,0.00019671,2]
[355956889,1741734659070,-1565.6,0.00019671,2]
[355956890,1741734659079,-1565.6,0.00019671,2]
[355956891,1741734659089,-1565.6,0.00019671,2]
[355956892,1741734659098,-1565.69471919,0.00019671,2]
[355956893,1741734659108,-802.38222908,0.00019722,2]
[355956894,1741734659118,-601.79,0.00019726,2]
[355956895,1741734659127,-573.41616792,0.00019726,2]
[355956896,1741734659136,-576.38030247,0.00019726,2]
[355956897,1741734659145,-723.39,0.00019726,2]
[355956898,1741734659155,-500.0,0.00019726,2]
[355956899,1741734659164,-500.0,0.00019726,2]
[355956900,1741734659174,-500.0,0.00019726,2]
[355956901,1741734659183,-500.0,0.00019726,2]
[355956902,1741734659192,-500.0,0.00019726,2]
[355956903,1741734659203,-500.0,0.00019726,2]
[355956904,1741734659212,-500.0,0.00019726,2]
[355956905,1741734659222,-659.44,0.00019726,2]
[355956906,1741734659231,-500.0,0.00019726,2]
[355956907,1741734659240,-500.0,0.00019726,2]
[355956908,1741734659249,-500.0,0.00019726,2]
[355956909,1741734659258,-500.0,0.00019726,2]
[355956910,1741734659267,-1136.06,0.00019726,2]
[355956911,1741734659276,-500.0,0.00019726,2]
[355956912,1741734659286,-500.0,0.00019726,2]
[355956913,1741734659296,-546.67435174,0.00019726,2]
[355956914,1741734659305,-711.23,0.00019726,2]
[355956915,1741734659315,-500.0,0.00019726,2]
[355956916,1741734659324,-500.0,0.00019726,2]
[355956917,1741734659334,-500.0,0.00019726,2]
[355956918,1741734659343,-500.0,0.00019726,2]
[355956919,1741734659353,-500.0,0.00019726,2]
[355956920,1741734659362,-710.79,0.00019726,2]
[355956921,1741734659371,-500.0,0.00019726,2]
[355956922,1741734659381,-500.0,0.00019726,2]
[355956923,1741734659391,-500.0,0.00019726,2]
[355956924,1741734659399,-500.0,0.00019726,2]
[355956925,1741734659409,-500.0,0.00019726,2]
[355956926,1741734659422,-500.0,0.00019726,2]
[355956927,1741734659431,-243.72195611,0.00019726,2]
[355956928,1741734659443,-500.0,0.00019726,2]
[355956929,1741734659452,-1151.95,0.00019726,2]
[355956930,1741734659461,-500.0,0.00019726,2]
[355956931,1741734659471,-500.0,0.00019726,2]
[355956932,1741734659481,-513.3,0.00019726,2]
[355956933,1741734659491,-714.14,0.00019726,2]
[355956934,1741734659500,-500.0,0.00019726,2]
[355956935,1741734659510,-500.0,0.00019726,2]
[355956936,1741734659520,-440.34331458,0.00019726,2]
[355956937,1741734659529,-500.0,0.00019726,2]
[355956938,1741734659539,-500.0,0.00019726,2]
[355956939,1741734659549,-1290.07,0.00019726,2]
[355956940,1741734659559,-500.0,0.00019726,2]
[355956941,1741734659568,-500.0,0.00019726,2]
[355956942,1741734659578,-500.0,0.00019726,2]
[355956943,1741734659587,-319.65863175,0.00019726,2]
[355956944,1741734659596,-4997.1,0.00019726,2]
[355956945,1741734659606,-500.0,0.00019726,2]
[355956946,1741734659615,-500.0,0.00019726,2]
[355956947,1741734659625,-500.0,0.00019726,2]
[355956948,1741734659634,-500.0,0.00019726,2]
[355956949,1741734659643,-500.0,0.00019726,2]
[355956950,1741734659653,-500.0,0.00019726,2]
[355956951,1741734659662,-500.0,0.00019726,2]
[355956952,1741734659671,-1292.35,0.00019726,2]
[355956953,1741734659681,-605.24,0.00019726,2]
[355956954,1741734659690,-1188.37,0.00019726,2]
[355956955,1741734659699,-500.0,0.00019726,2]
[355956956,1741734659709,-500.0,0.00019726,2]
[355956957,1741734659718,-500.0,0.00019726,2]
[355956958,1741734659727,-500.0,0.00019726,2]
[355956959,1741734659738,-604.97,0.00019726,2]
[355956960,1741734659751,-500.0,0.00019726,2]
[355956961,1741734659760,-500.0,0.00019726,2]
[355956962,1741734659770,-500.0,0.00019726,2]
[355956963,1741734659779,-516.50873779,0.00019726,2]
[355956964,1741734659791,-500.0,0.00019726,2]
[355956965,1741734659800,-186.27758907,0.00019726,2]
[355956966,1741734659810,-1994.33,0.00019726,2]
[355956967,1741734659820,-630.73,0.00019726,2]
[355956968,1741734659830,-892.18,0.00019726,2]
[355956969,1741734659839,-500.0,0.00019726,2]
[355956970,1741734659848,-755.13,0.00019726,2]
[355956971,1741734659858,-545.99,0.00019726,2]
[355956972,1741734659867,-500.0,0.00019726,2]
[355956973,1741734659877,-507.24636494,0.00019726,2]
[355956974,1741734659886,-1156.57,0.00019726,2]
[355956975,1741734659896,-500.0,0.00019726,2]
[355956976,1741734659905,-520.62,0.00019726,2]
[355956977,1741734659915,-1451.2,0.00019726,2]
[355956978,1741734659924,-500.0,0.00019726,2]
[355956979,1741734659935,-500.0,0.00019726,2]
[355956980,1741734659944,-500.0,0.00019726,2]
[355956981,1741734659953,-621.0,0.00019726,2]
[355956982,1741734659962,-515.83096482,0.00019726,2]
[355956983,1741734659973,-1784.22,0.00019726,2]
[355956984,1741734659982,-500.0,0.00019726,2]
[355956985,1741734659991,-500.0,0.00019726,2]
[355956986,1741734660001,-500.0,0.00019726,2]
[355956987,1741734660010,-500.0,0.00019726,2]
[355956988,1741734660019,-500.0,0.00019726,2]
[355956989,1741734660029,-500.0,0.00019726,2]